[Event "Titled Tuesday Blitz April 12 Early 2022"]
[White "Blokhin, Sofia"]
[Black "Mohammadian, Mohammad"]
[WhiteFideId "4508190"]
[BlackFideId "12566055"]
[WhiteElo "1764"]
[BlackElo "1544"]
[Result "1-0"]
[Round "08"]
[TimeControl "180+1"]
[Date "2022.04.13"]
[WhiteClock "0:00:18"]
[BlackClock "0:00:37"]

1. d4 {[%clk 0:03:00]}  Nf6 {[%clk 0:02:59]} 2. c4 {[%clk 0:02:58]}  g6 {[%clk 0:02:58]} 3. Nc3 {[%clk 0:02:58]}  d5 {[%clk 0:02:57]} 4. cxd5 {[%clk 0:02:54]}  Nxd5 {[%clk 0:02:57]} 5. e4 {[%clk 0:02:54]}  Nxc3 {[%clk 0:02:57]} 6. bxc3 {[%clk 0:02:54]}  Bg7 {[%clk 0:02:57]} 7. Nf3 {[%clk 0:02:52]}  c5 {[%clk 0:02:57]} 8. Bc4 {[%clk 0:02:49]}  Nc6 {[%clk 0:02:56]} 9. Be3 {[%clk 0:02:46]}  Qa5 {[%clk 0:02:55]} 10. Rc1 {[%clk 0:02:41]}  cxd4 {[%clk 0:02:55]} 11. Nxd4 {[%clk 0:02:38]}  Nxd4 {[%clk 0:02:50]} 12. Bxd4 {[%clk 0:02:38]}  O-O {[%clk 0:02:34]} 13. O-O {[%clk 0:02:32]}  Rd8 {[%clk 0:02:31]} 14. Qb3 {[%clk 0:02:26]}  e6 {[%clk 0:02:19]} 15. Rfd1 {[%clk 0:02:17]}  b6 {[%clk 0:02:13]} 16. Bxg7 {[%clk 0:02:03]}  Rxd1+ {[%clk 0:02:11]} 17. Qxd1 {[%clk 0:02:00]}  Kxg7 {[%clk 0:02:10]} 18. Qd4+ {[%clk 0:01:57]}  e5 {[%clk 0:02:08]} 19. Qd8 {[%clk 0:01:45]}  Bb7 {[%clk 0:01:46]} 20. Qe7 {[%clk 0:01:40]}  Rf8 {[%clk 0:01:24]} 21. Qxb7 {[%clk 0:01:39]}  Qa3 {[%clk 0:01:24]} 22. Rd1 {[%clk 0:01:30]}  Qxc3 {[%clk 0:01:23]} 23. Bb3 {[%clk 0:01:28]}  h5 {[%clk 0:01:03]} 24. h4 {[%clk 0:01:24]}  g5 {[%clk 0:01:03]} 25. hxg5 {[%clk 0:01:22]}  h4 {[%clk 0:01:03]} 26. Qe7 {[%clk 0:00:53]}  h3 {[%clk 0:01:01]} 27. Qf6+ {[%clk 0:00:53]}  Kg8 {[%clk 0:00:56]} 28. Qg6+ {[%clk 0:00:51]}  Kh8 {[%clk 0:00:55]} 29. Qh6+ {[%clk 0:00:49]}  Kg8 {[%clk 0:00:56]} 30. Qxh3 {[%clk 0:00:49]}  Qxh3 {[%clk 0:00:51]} 31. gxh3 {[%clk 0:00:48]}  Kg7 {[%clk 0:00:52]} 32. Kg2 {[%clk 0:00:45]}  Kg6 {[%clk 0:00:52]} 33. h4 {[%clk 0:00:44]}  Rh8 {[%clk 0:00:51]} 34. Kg3 {[%clk 0:00:44]}  Re8 {[%clk 0:00:46]} 35. Rd6+ {[%clk 0:00:42]}  Kg7 {[%clk 0:00:44]} 36. h5 {[%clk 0:00:42]}  Re7 {[%clk 0:00:44]} 37. Rf6 {[%clk 0:00:37]}  Rc7 {[%clk 0:00:41]} 38. Rxf7+ {[%clk 0:00:35]}  Rxf7 {[%clk 0:00:40]} 39. Bxf7 {[%clk 0:00:35]}  Kxf7 {[%clk 0:00:41]} 40. Kg4 {[%clk 0:00:28]}  b5 {[%clk 0:00:41]} 41. Kf5 {[%clk 0:00:25]}  a5 {[%clk 0:00:41]} 42. g6+ {[%clk 0:00:26]}  Kg7 {[%clk 0:00:41]} 43. Kg5 {[%clk 0:00:25]}  b4 {[%clk 0:00:41]} 44. h6+ {[%clk 0:00:26]}  Kg8 {[%clk 0:00:40]} 45. g7 {[%clk 0:00:22]}  Kh7 {[%clk 0:00:38]} 46. Kf6 {[%clk 0:00:20]}  a4 {[%clk 0:00:38]} 47. Kf7 {[%clk 0:00:19]}  b3 {[%clk 0:00:38]} 48. g8=Q+ {[%clk 0:00:18]}  Kxh6 {[%clk 0:00:37]} 49. Qg6# {[%clk 0:00:18]} 1-0


[Site "https://www.chess.com"]

[Event "Titled Tuesday Blitz April 12 Early 2022"]
[White "Bortnyk, Olexandr"]
[Black "Xiong, Jeffery"]
[WhiteFideId "14120828"]
[BlackFideId "2047640"]
[WhiteElo "2723"]
[BlackElo "2727"]
[Result "1-0"]
[Round "08"]
[TimeControl "180+1"]
[Date "2022.04.12"]
[WhiteClock "0:00:11"]
[BlackClock "0:00:03"]

1. d4 {[%clk 0:02:54]}  Nf6 {[%clk 0:02:57]} 2. Nc3 {[%clk 0:02:55]}  d5 {[%clk 0:02:57]} 3. Bf4 {[%clk 0:02:55]}  e6 {[%clk 0:02:58]} 4. Nb5 {[%clk 0:02:54]}  Na6 {[%clk 0:02:58]} 5. e3 {[%clk 0:02:54]}  Be7 {[%clk 0:02:58]} 6. Nf3 {[%clk 0:02:54]}  O-O {[%clk 0:02:58]} 7. Ne5 {[%clk 0:02:55]}  Nd7 {[%clk 0:02:52]} 8. a3 {[%clk 0:02:48]}  Nxe5 {[%clk 0:02:51]} 9. Bxe5 {[%clk 0:02:49]}  Bd7 {[%clk 0:02:50]} 10. Nc3 {[%clk 0:02:48]}  c5 {[%clk 0:02:43]} 11. Bxa6 {[%clk 0:02:47]}  bxa6 {[%clk 0:02:43]} 12. O-O {[%clk 0:02:48]}  f6 {[%clk 0:02:30]} 13. Bg3 {[%clk 0:02:47]}  Qb6 {[%clk 0:02:30]} 14. Rb1 {[%clk 0:02:46]}  a5 {[%clk 0:02:21]} 15. Re1 {[%clk 0:02:42]}  Rac8 {[%clk 0:02:15]} 16. Qd2 {[%clk 0:02:26]}  Rfd8 {[%clk 0:02:15]} 17. Ne2 {[%clk 0:02:25]}  Be8 {[%clk 0:02:08]} 18. c3 {[%clk 0:02:17]}  Bg6 {[%clk 0:02:01]} 19. Rbd1 {[%clk 0:02:17]}  c4 {[%clk 0:01:59]} 20. f3 {[%clk 0:02:16]}  Rd7 {[%clk 0:01:54]} 21. Nf4 {[%clk 0:02:13]}  Bf7 {[%clk 0:01:34]} 22. Kh1 {[%clk 0:02:04]}  Rb7 {[%clk 0:01:29]} 23. Re2 {[%clk 0:01:54]}  Rd8 {[%clk 0:01:29]} 24. Qe1 {[%clk 0:01:34]}  Qb5 {[%clk 0:01:08]} 25. e4 {[%clk 0:01:22]}  dxe4 {[%clk 0:01:09]} 26. Rxe4 {[%clk 0:01:23]}  Qxb2 {[%clk 0:01:01]} 27. Nxe6 {[%clk 0:01:20]}  Rdd7 {[%clk 0:00:58]} 28. a4 {[%clk 0:01:09]}  Qc2 {[%clk 0:00:55]} 29. d5 {[%clk 0:00:57]}  Rxd5 {[%clk 0:00:53]} 30. Rxd5 {[%clk 0:00:45]}  Rb1 {[%clk 0:00:54]} 31. Rd7 {[%clk 0:00:40]}  Rxe1+ {[%clk 0:00:28]} 32. Bxe1 {[%clk 0:00:34]}  Bxe6 {[%clk 0:00:23]} 33. Rxe6 {[%clk 0:00:33]}  Bf8 {[%clk 0:00:24]} 34. Re8 {[%clk 0:00:30]}  h5 {[%clk 0:00:18]} 35. h4 {[%clk 0:00:27]}  Qc1 {[%clk 0:00:13]} 36. Kh2 {[%clk 0:00:21]}  Kh7 {[%clk 0:00:12]} 37. Bd2 {[%clk 0:00:21]}  Qb1 {[%clk 0:00:02]} 38. Rxf8 {[%clk 0:00:21]}  Qf5 {[%clk 0:00:03]} 39. Rff7 {[%clk 0:00:20]}  Qe5+ {[%clk 0:00:03]} 40. Kh1 {[%clk 0:00:19]}  Qe2 {[%clk 0:00:02]} 41. Rxg7+ {[%clk 0:00:19]}  Kh8 {[%clk 0:00:03]} 42. Rge7 {[%clk 0:00:11]} 1-0


[Site "https://www.chess.com"]

[Event "Titled Tuesday Blitz April 12 Early 2022"]
[White "Bowden, Karl"]
[Black "Lagumina, Giulio"]
[WhiteFideId "400548"]
[BlackFideId "800619"]
[WhiteElo "2338"]
[BlackElo "2277"]
[Result "0-1"]
[Round "08"]
[TimeControl "180+1"]
[Date "2022.04.13"]
[WhiteClock "0:00:44"]
[BlackClock "0:01:17"]

1. e4 {[%clk 0:02:59]}  e5 {[%clk 0:02:59]} 2. Nf3 {[%clk 0:02:58]}  d6 {[%clk 0:02:59]} 3. d4 {[%clk 0:02:58]}  exd4 {[%clk 0:02:59]} 4. Qxd4 {[%clk 0:02:58]}  Nf6 {[%clk 0:02:58]} 5. Nc3 {[%clk 0:02:55]}  Be7 {[%clk 0:02:58]} 6. Bg5 {[%clk 0:02:54]}  O-O {[%clk 0:02:56]} 7. O-O-O {[%clk 0:02:54]}  Nc6 {[%clk 0:02:54]} 8. Qd2 {[%clk 0:02:54]}  Be6 {[%clk 0:02:53]} 9. h4 {[%clk 0:02:53]}  a6 {[%clk 0:02:49]} 10. Nd5 {[%clk 0:02:46]}  Nxe4 {[%clk 0:02:31]} 11. Nxe7+ {[%clk 0:02:46]}  Nxe7 {[%clk 0:02:30]} 12. Qe3 {[%clk 0:02:39]}  Nc5 {[%clk 0:02:13]} 13. Nd4 {[%clk 0:02:07]}  Qd7 {[%clk 0:02:10]} 14. b4 {[%clk 0:01:49]}  Na4 {[%clk 0:02:04]} 15. Nxe6 {[%clk 0:01:43]}  fxe6 {[%clk 0:02:03]} 16. Bc4 {[%clk 0:01:41]}  Nd5 {[%clk 0:01:39]} 17. Bxd5 {[%clk 0:01:24]}  exd5 {[%clk 0:01:38]} 18. Rxd5 {[%clk 0:01:24]}  Rae8 {[%clk 0:01:37]} 19. Qb3 {[%clk 0:01:20]}  Kh8 {[%clk 0:01:34]} 20. Be3 {[%clk 0:01:20]}  b5 {[%clk 0:01:23]} 21. Qd3 {[%clk 0:01:05]}  Qe6 {[%clk 0:01:20]} 22. Kb1 {[%clk 0:00:44]}  Qxd5 {[%clk 0:01:17]} 0-1


[Site "https://www.chess.com"]

[Event "Titled Tuesday Blitz April 12 Early 2022"]
[White "Bryakin, Mikhail"]
[Black "Piesik, Piotr"]
[WhiteFideId "4165314"]
[BlackFideId "1136194"]
[WhiteElo "2417"]
[BlackElo "2190"]
[Result "1-0"]
[Round "08"]
[TimeControl "180+1"]
[Date "2022.04.12"]
[WhiteClock "0:02:03"]
[BlackClock "0:00:54"]

1. e4 {[%clk 0:03:00]}  g6 {[%clk 0:02:54]} 2. d4 {[%clk 0:02:55]}  Bg7 {[%clk 0:02:54]} 3. Nc3 {[%clk 0:02:55]}  c6 {[%clk 0:02:53]} 4. f4 {[%clk 0:02:54]}  d5 {[%clk 0:02:53]} 5. e5 {[%clk 0:02:54]}  Nh6 {[%clk 0:02:49]} 6. Nf3 {[%clk 0:02:53]}  Bg4 {[%clk 0:02:49]} 7. h3 {[%clk 0:02:51]}  Bxf3 {[%clk 0:02:49]} 8. Qxf3 {[%clk 0:02:51]}  Nf5 {[%clk 0:02:50]} 9. Be3 {[%clk 0:02:51]}  Nxe3 {[%clk 0:02:47]} 10. Qxe3 {[%clk 0:02:51]}  e6 {[%clk 0:02:47]} 11. O-O-O {[%clk 0:02:50]}  h5 {[%clk 0:02:47]} 12. g3 {[%clk 0:02:49]}  Bf8 {[%clk 0:02:45]} 13. Be2 {[%clk 0:02:47]}  Qa5 {[%clk 0:02:44]} 14. a3 {[%clk 0:02:44]}  a6 {[%clk 0:02:40]} 15. g4 {[%clk 0:02:44]}  h4 {[%clk 0:02:25]} 16. f5 {[%clk 0:02:44]}  exf5 {[%clk 0:02:24]} 17. Kb1 {[%clk 0:02:41]}  f4 {[%clk 0:02:15]} 18. Qxf4 {[%clk 0:02:39]}  Nd7 {[%clk 0:02:04]} 19. Rhf1 {[%clk 0:02:38]}  Rh7 {[%clk 0:02:04]} 20. Na2 {[%clk 0:02:21]}  O-O-O {[%clk 0:02:03]} 21. Nc1 {[%clk 0:02:20]}  Be7 {[%clk 0:01:52]} 22. Nb3 {[%clk 0:02:19]}  Qc7 {[%clk 0:01:48]} 23. g5 {[%clk 0:02:18]}  Nf8 {[%clk 0:01:46]} 24. Bg4+ {[%clk 0:02:19]}  Ne6 {[%clk 0:01:42]} 25. Bxe6+ {[%clk 0:02:19]}  fxe6 {[%clk 0:01:42]} 26. Qg4 {[%clk 0:02:20]}  Qd7 {[%clk 0:01:35]} 27. Nc5 {[%clk 0:02:18]}  Bxc5 {[%clk 0:01:31]} 28. dxc5 {[%clk 0:02:19]}  Rf7 {[%clk 0:01:19]} 29. Rf6 {[%clk 0:02:17]}  Rxf6 {[%clk 0:01:19]} 30. gxf6 {[%clk 0:02:18]}  Qf7 {[%clk 0:01:18]} 31. Qxh4 {[%clk 0:02:17]}  Rg8 {[%clk 0:01:15]} 32. Rg1 {[%clk 0:02:16]}  Kd7 {[%clk 0:01:14]} 33. Qh6 {[%clk 0:02:14]}  Ke8 {[%clk 0:01:12]} 34. h4 {[%clk 0:02:15]}  Qf8 {[%clk 0:01:11]} 35. Rxg6 {[%clk 0:02:11]}  Qxh6 {[%clk 0:01:08]} 36. Rxh6 {[%clk 0:02:12]}  Rg1+ {[%clk 0:01:06]} 37. Ka2 {[%clk 0:02:12]}  Re1 {[%clk 0:01:07]} 38. Rh8+ {[%clk 0:02:12]}  Kf7 {[%clk 0:01:06]} 39. Rh7+ {[%clk 0:02:12]}  Kf8 {[%clk 0:01:06]} 40. Rxb7 {[%clk 0:02:11]}  Rxe5 {[%clk 0:01:05]} 41. Rc7 {[%clk 0:02:09]}  Re4 {[%clk 0:01:01]} 42. Rxc6 {[%clk 0:02:09]}  Kf7 {[%clk 0:01:01]} 43. Rxa6 {[%clk 0:02:09]}  Kxf6 {[%clk 0:01:01]} 44. b4 {[%clk 0:02:05]}  Rxh4 {[%clk 0:01:01]} 45. Kb3 {[%clk 0:02:05]}  Rh1 {[%clk 0:01:00]} 46. Kb2 {[%clk 0:02:03]}  Ke7 {[%clk 0:00:57]} 47. Ra7+ {[%clk 0:02:03]}  Kd8 {[%clk 0:00:57]} 48. b5 {[%clk 0:02:04]}  Rh4 {[%clk 0:00:54]} 49. c6 {[%clk 0:02:04]}  Rc4 {[%clk 0:00:54]} 50. Kb3 {[%clk 0:02:04]}  e5 {[%clk 0:00:54]} 51. Rd7+ {[%clk 0:02:03]} 1-0


[Site "https://www.chess.com"]

[Event "Titled Tuesday Blitz April 12 Early 2022"]
[White "Butti, Enrique"]
[Black "Ovezdurdyyeva, Jemal"]
[WhiteFideId "3700470"]
[BlackFideId "14001888"]
[WhiteElo "2080"]
[BlackElo "1946"]
[Result "0-1"]
[Round "08"]
[TimeControl "180+1"]
[Date "2022.04.13"]
[WhiteClock "0:00:19"]
[BlackClock "0:00:15"]

1. d4 {[%clk 0:02:59]}  Nf6 {[%clk 0:02:58]} 2. Nf3 {[%clk 0:02:57]}  g6 {[%clk 0:02:58]} 3. c4 {[%clk 0:02:55]}  Bg7 {[%clk 0:02:58]} 4. Nc3 {[%clk 0:02:53]}  d5 {[%clk 0:02:58]} 5. Bg5 {[%clk 0:02:48]}  c6 {[%clk 0:02:56]} 6. e3 {[%clk 0:02:37]}  O-O {[%clk 0:02:47]} 7. Bd3 {[%clk 0:02:35]}  Qa5 {[%clk 0:02:44]} 8. O-O {[%clk 0:02:32]}  Bg4 {[%clk 0:02:43]} 9. Bh4 {[%clk 0:02:25]}  Qb4 {[%clk 0:02:24]} 10. cxd5 {[%clk 0:02:22]}  Qxb2 {[%clk 0:02:17]} 11. Rc1 {[%clk 0:02:09]}  cxd5 {[%clk 0:02:12]} 12. Bxf6 {[%clk 0:02:07]}  Bxf6 {[%clk 0:02:11]} 13. Nxd5 {[%clk 0:02:06]}  Nc6 {[%clk 0:01:58]} 14. Nxf6+ {[%clk 0:02:02]}  exf6 {[%clk 0:01:59]} 15. Rb1 {[%clk 0:02:00]}  Qxa2 {[%clk 0:01:57]} 16. Rxb7 {[%clk 0:01:58]}  a5 {[%clk 0:01:53]} 17. Rc7 {[%clk 0:01:47]}  Qd5 {[%clk 0:01:45]} 18. Be2 {[%clk 0:01:32]}  Qd6 {[%clk 0:01:29]} 19. Rb7 {[%clk 0:01:24]}  Nb4 {[%clk 0:01:29]} 20. Nd2 {[%clk 0:01:18]}  Bc8 {[%clk 0:01:24]} 21. Rb5 {[%clk 0:01:13]}  Bd7 {[%clk 0:01:23]} 22. Rc5 {[%clk 0:01:12]}  Rfc8 {[%clk 0:01:18]} 23. Nc4 {[%clk 0:01:10]}  Qb8 {[%clk 0:01:09]} 24. Rxa5 {[%clk 0:01:07]}  Rxa5 {[%clk 0:01:07]} 25. Nxa5 {[%clk 0:01:05]}  Nd5 {[%clk 0:01:00]} 26. Bf3 {[%clk 0:01:00]}  Nc3 {[%clk 0:00:57]} 27. Qb3 {[%clk 0:00:57]}  Qc7 {[%clk 0:00:37]} 28. Qb7 {[%clk 0:00:51]}  Qxb7 {[%clk 0:00:28]} 29. Nxb7 {[%clk 0:00:49]}  f5 {[%clk 0:00:27]} 30. Nc5 {[%clk 0:00:47]}  Be8 {[%clk 0:00:25]} 31. Rc1 {[%clk 0:00:44]}  Nb5 {[%clk 0:00:24]} 32. Ra1 {[%clk 0:00:38]}  f4 {[%clk 0:00:22]} 33. Ra6 {[%clk 0:00:35]}  fxe3 {[%clk 0:00:20]} 34. fxe3 {[%clk 0:00:34]}  Nc3 {[%clk 0:00:19]} 35. Ra7 {[%clk 0:00:31]}  Rb8 {[%clk 0:00:18]} 36. d5 {[%clk 0:00:27]}  Rd8 {[%clk 0:00:18]} 37. e4 {[%clk 0:00:26]}  Rc8 {[%clk 0:00:17]} 38. Nd3 {[%clk 0:00:24]}  Nb5 {[%clk 0:00:15]} 39. Rb7 {[%clk 0:00:23]}  Nd6 {[%clk 0:00:15]} 40. Rb6 {[%clk 0:00:22]}  Nc4 {[%clk 0:00:16]} 41. Nf4 {[%clk 0:00:19]}  Nxb6 {[%clk 0:00:15]} 0-1


[Site "https://www.chess.com"]

[Event "Titled Tuesday Blitz April 12 Early 2022"]
[White "Caruana, Fabiano"]
[Black "Nogerbek, Kazybek"]
[WhiteFideId "2020009"]
[BlackFideId "13710427"]
[WhiteElo "2744"]
[BlackElo "2466"]
[Result "1/2-1/2"]
[Round "08"]
[TimeControl "180+1"]
[Date "2022.04.12"]
[WhiteClock "0:00:09"]
[BlackClock "0:00:03"]

1. e4 {[%clk 0:03:00]}  e5 {[%clk 0:02:52]} 2. Nf3 {[%clk 0:03:00]}  Nc6 {[%clk 0:02:53]} 3. Bb5 {[%clk 0:03:00]}  a6 {[%clk 0:02:50]} 4. Ba4 {[%clk 0:03:01]}  Nf6 {[%clk 0:02:51]} 5. O-O {[%clk 0:03:01]}  Be7 {[%clk 0:02:51]} 6. Re1 {[%clk 0:03:01]}  b5 {[%clk 0:02:50]} 7. Bb3 {[%clk 0:03:02]}  O-O {[%clk 0:02:50]} 8. d3 {[%clk 0:03:01]}  d6 {[%clk 0:02:49]} 9. c3 {[%clk 0:03:02]}  Bb7 {[%clk 0:02:45]} 10. Nbd2 {[%clk 0:02:55]}  Re8 {[%clk 0:02:35]} 11. Nf1 {[%clk 0:02:49]}  Bf8 {[%clk 0:02:34]} 12. Bg5 {[%clk 0:02:48]}  h6 {[%clk 0:02:32]} 13. Bh4 {[%clk 0:02:48]}  Nb8 {[%clk 0:02:29]} 14. Ne3 {[%clk 0:02:43]}  Nbd7 {[%clk 0:02:29]} 15. h3 {[%clk 0:02:34]}  c6 {[%clk 0:02:16]} 16. Nh2 {[%clk 0:02:29]}  a5 {[%clk 0:02:06]} 17. a4 {[%clk 0:02:24]}  b4 {[%clk 0:01:59]} 18. cxb4 {[%clk 0:02:07]}  axb4 {[%clk 0:02:00]} 19. Nhg4 {[%clk 0:02:07]}  h5 {[%clk 0:01:04]} 20. Nxf6+ {[%clk 0:02:04]}  Nxf6 {[%clk 0:01:05]} 21. Qf3 {[%clk 0:01:57]}  Bc8 {[%clk 0:00:57]} 22. Rec1 {[%clk 0:01:51]}  Ra6 {[%clk 0:00:55]} 23. Bc4 {[%clk 0:01:45]}  Ra5 {[%clk 0:00:54]} 24. Nf5 {[%clk 0:01:18]}  Bxf5 {[%clk 0:00:46]} 25. Qxf5 {[%clk 0:01:16]}  Qd7 {[%clk 0:00:43]} 26. Qf3 {[%clk 0:01:12]}  Be7 {[%clk 0:00:36]} 27. Bb3 {[%clk 0:01:11]}  d5 {[%clk 0:00:32]} 28. Bxf6 {[%clk 0:01:07]}  Bxf6 {[%clk 0:00:31]} 29. Qxh5 {[%clk 0:01:07]}  g6 {[%clk 0:00:31]} 30. Qf3 {[%clk 0:01:06]}  Kg7 {[%clk 0:00:31]} 31. Rc2 {[%clk 0:01:07]}  Re6 {[%clk 0:00:25]} 32. Rac1 {[%clk 0:00:53]}  Bg5 {[%clk 0:00:25]} 33. exd5 {[%clk 0:00:53]}  Rf6 {[%clk 0:00:26]} 34. dxc6 {[%clk 0:00:51]}  Qc7 {[%clk 0:00:24]} 35. Qe4 {[%clk 0:00:39]}  Bxc1 {[%clk 0:00:23]} 36. Rxc1 {[%clk 0:00:40]}  Rf4 {[%clk 0:00:21]} 37. Qe3 {[%clk 0:00:39]}  Rd4 {[%clk 0:00:18]} 38. Qf3 {[%clk 0:00:34]}  Rf4 {[%clk 0:00:12]} 39. Qe2 {[%clk 0:00:31]}  Rf6 {[%clk 0:00:09]} 40. Qe4 {[%clk 0:00:25]}  Rf4 {[%clk 0:00:10]} 41. Qe3 {[%clk 0:00:25]}  Rf6 {[%clk 0:00:08]} 42. Qd2 {[%clk 0:00:18]}  Rxc6 {[%clk 0:00:07]} 43. Rxc6 {[%clk 0:00:19]}  Qxc6 {[%clk 0:00:08]} 44. Qxb4 {[%clk 0:00:19]}  Ra7 {[%clk 0:00:05]} 45. Kh2 {[%clk 0:00:14]}  Rd7 {[%clk 0:00:04]} 46. Qc4 {[%clk 0:00:13]}  Qf6 {[%clk 0:00:03]} 47. Kg1 {[%clk 0:00:10]}  Qd6 {[%clk 0:00:04]} 48. Qc3 {[%clk 0:00:10]}  Rc7 {[%clk 0:00:03]} 49. Bc4 {[%clk 0:00:10]}  Rd7 {[%clk 0:00:03]} 50. a5 {[%clk 0:00:10]}  Qd4 {[%clk 0:00:02]} 51. Qxd4 {[%clk 0:00:10]}  Rxd4 {[%clk 0:00:03]} 52. f3 {[%clk 0:00:08]}  Kf6 {[%clk 0:00:02]} 53. b4 {[%clk 0:00:08]}  Ke7 {[%clk 0:00:02]} 54. b5 {[%clk 0:00:08]}  Kd6 {[%clk 0:00:02]} 55. a6 {[%clk 0:00:06]}  Kc7 {[%clk 0:00:02]} 56. a7 {[%clk 0:00:03]}  Kb7 {[%clk 0:00:02]} 57. b6 {[%clk 0:00:04]}  Rd8 {[%clk 0:00:02]} 58. Bxf7 {[%clk 0:00:04]}  Kxb6 {[%clk 0:00:01]} 59. Bxg6 {[%clk 0:00:05]}  Kxa7 {[%clk 0:00:02]} 60. Be4 {[%clk 0:00:05]}  Kb6 {[%clk 0:00:02]} 61. Kh2 {[%clk 0:00:06]}  Kc5 {[%clk 0:00:03]} 62. h4 {[%clk 0:00:06]}  Kd6 {[%clk 0:00:04]} 63. Kh3 {[%clk 0:00:07]}  Ke6 {[%clk 0:00:05]} 64. h5 {[%clk 0:00:07]}  Kf6 {[%clk 0:00:05]} 65. Kh4 {[%clk 0:00:08]}  Rb8 {[%clk 0:00:05]} 66. g4 {[%clk 0:00:08]}  Rb1 {[%clk 0:00:03]} 67. g5+ {[%clk 0:00:09]}  Kf7 {[%clk 0:00:03]} 68. Kg4 {[%clk 0:00:09]}  Rh1 {[%clk 0:00:03]} 69. h6 {[%clk 0:00:08]}  Ke6 {[%clk 0:00:02]} 70. h7 {[%clk 0:00:08]}  Rh2 {[%clk 0:00:02]} 71. Bc6 {[%clk 0:00:06]}  Rxh7 {[%clk 0:00:01]} 72. g6 {[%clk 0:00:06]}  Rh2 {[%clk 0:00:01]} 73. Kg5 {[%clk 0:00:06]}  Rg2+ {[%clk 0:00:01]} 74. Kh5 {[%clk 0:00:06]}  Kf6 {[%clk 0:00:02]} 75. Be4 {[%clk 0:00:06]}  Rg1 {[%clk 0:00:02]} 76. Kh4 {[%clk 0:00:06]}  Rg5 {[%clk 0:00:01]} 77. Kh3 {[%clk 0:00:06]}  Rg1 {[%clk 0:00:02]} 78. Kh2 {[%clk 0:00:06]}  Ra1 {[%clk 0:00:02]} 79. Kg3 {[%clk 0:00:07]}  Ra7 {[%clk 0:00:03]} 80. Kg4 {[%clk 0:00:07]}  Rd7 {[%clk 0:00:03]} 81. Kh5 {[%clk 0:00:07]}  Ra7 {[%clk 0:00:03]} 82. Kh6 {[%clk 0:00:08]}  Ra2 {[%clk 0:00:03]} 83. Kh7 {[%clk 0:00:07]}  Ra7+ {[%clk 0:00:03]} 84. Kh6 {[%clk 0:00:07]}  Ra2 {[%clk 0:00:03]} 85. Kh5 {[%clk 0:00:07]}  Rh2+ {[%clk 0:00:04]} 86. Kg4 {[%clk 0:00:08]}  Rg2+ {[%clk 0:00:05]} 87. Kh3 {[%clk 0:00:08]}  Rg1 {[%clk 0:00:05]} 88. Kh2 {[%clk 0:00:09]}  Rg5 {[%clk 0:00:05]} 89. Kh1 {[%clk 0:00:09]}  Kg7 {[%clk 0:00:06]} 90. Kh2 {[%clk 0:00:10]}  Kf6 {[%clk 0:00:06]} 91. Kh3 {[%clk 0:00:10]}  Rh5+ {[%clk 0:00:06]} 92. Kg4 {[%clk 0:00:10]}  Rh1 {[%clk 0:00:06]} 93. Kg3 {[%clk 0:00:11]}  Rg1+ {[%clk 0:00:06]} 94. Kf2 {[%clk 0:00:11]}  Rg5 {[%clk 0:00:07]} 95. Ke3 {[%clk 0:00:12]}  Rh5 {[%clk 0:00:08]} 96. Kd2 {[%clk 0:00:10]}  Rh8 {[%clk 0:00:07]} 97. Kc3 {[%clk 0:00:10]}  Rd8 {[%clk 0:00:08]} 98. Kd2 {[%clk 0:00:10]}  Rb8 {[%clk 0:00:08]} 99. Ke3 {[%clk 0:00:11]}  Rb4 {[%clk 0:00:08]} 100. f4 {[%clk 0:00:11]}  exf4+ {[%clk 0:00:06]} 101. Kxf4 {[%clk 0:00:12]}  Ra4 {[%clk 0:00:05]} 102. Ke3 {[%clk 0:00:13]}  Rb4 {[%clk 0:00:03]} 103. d4 {[%clk 0:00:13]}  Ke6 {[%clk 0:00:02]} 104. Bd3 {[%clk 0:00:12]}  Kf6 {[%clk 0:00:03]} 105. Be4 {[%clk 0:00:10]}  Rb6 {[%clk 0:00:02]} 106. d5 {[%clk 0:00:10]}  Rb4 {[%clk 0:00:02]} 107. Bd3 {[%clk 0:00:10]}  Ke5 {[%clk 0:00:02]} 108. g7 {[%clk 0:00:10]}  Rb8 {[%clk 0:00:02]} 109. Bh7 {[%clk 0:00:08]}  Kxd5 {[%clk 0:00:03]} 110. g8=Q+ {[%clk 0:00:08]}  Rxg8 {[%clk 0:00:03]} 111. Bxg8+ {[%clk 0:00:09]} 1/2-1/2


[Site "https://www.chess.com"]

[Event "Titled Tuesday Blitz April 12 Early 2022"]
[White "Dang, Hoang Son"]
[Black "Gallegos Diaz, Carlos Alberto"]
[WhiteFideId "12402435"]
[BlackFideId "3900886"]
[WhiteElo "2252"]
[BlackElo "2362"]
[Result "1-0"]
[Round "08"]
[TimeControl "180+1"]
[Date "2022.04.13"]
[WhiteClock "0:00:22"]
[BlackClock "0:00:07"]

1. d4 {[%clk 0:03:00]}  Nf6 {[%clk 0:02:59]} 2. Bf4 {[%clk 0:03:01]}  d6 {[%clk 0:02:58]} 3. Nd2 {[%clk 0:03:00]}  Nbd7 {[%clk 0:02:58]} 4. e3 {[%clk 0:03:00]}  e5 {[%clk 0:02:58]} 5. Bg3 {[%clk 0:02:59]}  c6 {[%clk 0:02:53]} 6. c3 {[%clk 0:02:58]}  Be7 {[%clk 0:02:53]} 7. Bd3 {[%clk 0:02:55]}  O-O {[%clk 0:02:51]} 8. Ngf3 {[%clk 0:02:51]}  Re8 {[%clk 0:02:49]} 9. O-O {[%clk 0:02:50]}  Bf8 {[%clk 0:02:48]} 10. dxe5 {[%clk 0:02:35]}  dxe5 {[%clk 0:02:38]} 11. Ne4 {[%clk 0:02:34]}  Qc7 {[%clk 0:02:20]} 12. Qc2 {[%clk 0:02:22]}  Nxe4 {[%clk 0:02:17]} 13. Bxe4 {[%clk 0:02:21]}  Nf6 {[%clk 0:02:17]} 14. Bf5 {[%clk 0:02:19]}  g6 {[%clk 0:01:49]} 15. Bxc8 {[%clk 0:02:15]}  Raxc8 {[%clk 0:01:50]} 16. Rad1 {[%clk 0:02:09]}  Nh5 {[%clk 0:01:49]} 17. Ng5 {[%clk 0:01:55]}  Nxg3 {[%clk 0:01:39]} 18. fxg3 {[%clk 0:01:55]}  f5 {[%clk 0:01:27]} 19. Qb3+ {[%clk 0:01:47]}  Kh8 {[%clk 0:01:26]} 20. Kh1 {[%clk 0:01:28]}  Bh6 {[%clk 0:01:16]} 21. Nf7+ {[%clk 0:01:24]}  Kg7 {[%clk 0:01:16]} 22. Nd6 {[%clk 0:01:22]}  Red8 {[%clk 0:01:07]} 23. Qe6 {[%clk 0:00:50]}  Rb8 {[%clk 0:00:51]} 24. Ne8+ {[%clk 0:00:49]}  Rxe8 {[%clk 0:00:48]} 25. Rd7+ {[%clk 0:00:49]}  Qxd7 {[%clk 0:00:39]} 26. Qxd7+ {[%clk 0:00:50]}  Kg8 {[%clk 0:00:38]} 27. e4 {[%clk 0:00:44]}  f4 {[%clk 0:00:37]} 28. Rd1 {[%clk 0:00:37]}  Bg5 {[%clk 0:00:24]} 29. Qg4 {[%clk 0:00:32]}  Bf6 {[%clk 0:00:17]} 30. gxf4 {[%clk 0:00:32]}  Rbd8 {[%clk 0:00:15]} 31. Rxd8 {[%clk 0:00:30]}  Rxd8 {[%clk 0:00:16]} 32. f5 {[%clk 0:00:30]}  Kf7 {[%clk 0:00:16]} 33. h4 {[%clk 0:00:30]}  Rd3 {[%clk 0:00:11]} 34. h5 {[%clk 0:00:27]}  g5 {[%clk 0:00:11]} 35. h6 {[%clk 0:00:27]}  Ke7 {[%clk 0:00:10]} 36. Qe2 {[%clk 0:00:26]}  Rd6 {[%clk 0:00:09]} 37. Kh2 {[%clk 0:00:25]}  Kf7 {[%clk 0:00:08]} 38. Qc4+ {[%clk 0:00:24]}  Kf8 {[%clk 0:00:08]} 39. Qb4 {[%clk 0:00:23]}  Be7 {[%clk 0:00:08]} 40. Qxb7 {[%clk 0:00:23]}  g4 {[%clk 0:00:07]} 41. Kg3 {[%clk 0:00:23]}  Rd3+ {[%clk 0:00:06]} 42. Kxg4 {[%clk 0:00:23]}  Rd7 {[%clk 0:00:07]} 43. Qxd7 {[%clk 0:00:22]} 1-0


[Site "https://www.chess.com"]